Workbook

Sheet Лист1
A1: Школа | C1: МБОУ "Кубасская ООШ" | F1: Утвердил: | G1: должность | H1: директор
A2: Типовое примерное меню приготавливаемых блюд | G2: фамилия | H2: Л.А. Пальцева
A3: Возрастная категория | E3: 7-11 лет | G3: дата | H3: 6 | I3: 11 | J3: 2025
H4: день | I4: месяц | J4: год
A5: Неделя | B5: День недели | C5: Прием пищи | D5: Раздел меню | E5: Блюда | F5: Вес блюда, г | G5: Белки | H5: Жиры | I5: Углеводы | J5: Калорийность | K5: № рецептуры | L5: Цена
A6: 1 | B6: 1 | C6: Завтрак | D6: гор.блюдо | E6: Каша молочная ячневая с изюмом жидкая со сливочным маслом, оладьи со сгущенным молоком | F6: 280 | G6: 8.12 | H6: 13.44 | I6: 25.14 | J6: 468.4 | K6: 176 сб шк14/ 5 сб шк14 | L6: 74.77
D8: гор.напиток | E8: Чай с сахаром | F8: 210 | G8: 0.021 | H8: 0.005 | I8: 14.98 | J8: 60 | K8: 306сб шк14
D9: хлеб | E9: Хлеб пшеничный/ржаной пшеничный | F9: 50 | G9: 3.28 | H9: 0.44 | I9: 23.76 | J9: 111.4 | K9: 573/574
D10: фрукты
D13: итого | F13: =SUM(F6:F12) -> 540 | G13: =SUM(G6:G12) -> 11.421 | H13: 13.885 | I13: 63.88 | J13: 639.8 | L13: =SUM(L6:L12) -> 74.77
A14: =A6 -> 1 | B14: =B6 -> 1 | C14: Обед | D14: закуска
D15: 1 блюдо
D16: 2 блюдо
D17: гарнир
D18: напиток
D19: хлеб бел.
D20: хлеб черн.
D23: итого | F23: =SUM(F14:F22) -> 0 | G23: =SUM(G14:G22) -> 0 | H23: 0 | I23: 0 | J23: 0 | L23: =SUM(L14:L22) -> 0
A24: =A6 -> 1 | B24: =B6 -> 1 | C24: Итого за день: | F24: =F13+F23 -> 540 | G24: =G13+G23 -> 11.421 | H24: 13.885 | I24: 63.88 | J24: 639.8 | L24: =L13+L23 -> 74.77
A25: 1 | B25: 2 | C25: Завтрак | D25: гор.блюдо | E25: Макароны отварные с запеченным сыром, "Ежики" куриные с соусом кр. Осн | F25: 260 | G25: 15.53 | H25: 12.43 | I25: 42.2 | J25: 422.88 | K25: 117сб шк14т/ 87сб шк14
D27: гор.напиток | E27: Какао на молоке | F27: 200 | G27: 0.021 | H27: 0.005 | I27: 25.17 | J27: 60 | K27: 294сб шк14
D28: хлеб | E28: Хлеб пшеничный | F28: 50 | G28: 2.28 | H28: 0.44 | I28: 23.76 | J28: 111.4 | K28: 573
D29: фрукты
D32: итого | F32: =SUM(F25:F31) -> 510 | G32: =SUM(G25:G31) -> 17.831 | H32: =SUM(H25:H31) -> 12.875 | I32: =SUM(I25:I31) -> 91.13 | J32: =SUM(J25:J31) -> 594.28 | L32: 74.77
A33: =A25 -> 1 | B33: =B25 -> 2 | C33: Обед | D33: закуска
D34: 1 блюдо
D35: 2 блюдо
D36: гарнир
D37: напиток
D38: хлеб бел.
D39: хлеб черн.
D42: итого | F42: =SUM(F33:F41) -> 0 | G42: =SUM(G33:G41) -> 0 | H42: =SUM(H33:H41) -> 0 | I42: =SUM(I33:I41) -> 0 | J42: =SUM(J33:J41) -> 0 | L42: 0
A43: =A25 -> 1 | B43: =B25 -> 2 | C43: Итого за день: | F43: =F32+F42 -> 510 | G43: =G32+G42 -> 17.831 | H43: =H32+H42 -> 12.875 | I43: =I32+I42 -> 91.13 | J43: =J32+J42 -> 594.28 | L43: 74.77
A44: 1 | B44: 3 | C44: Завтрак | D44: гор.блюдо | E44: Гренки с сыром, овощное рагу с курицей | F44: 250 | G44: 11.08 | H44: 17.057 | I44: 36.43 | J44: 446 | K44: 146сб шк14 / 108сб шк14 | L44: 74.77
D46: гор.напиток | E46: Чай с сахаром | F46: 210 | G46: 0.021 | H46: 0.005 | I46: 14.98 | J46: 60 | K46: 282 сб шк142
D47: хлеб | E47: хлеб пшеничный/ржаной | F47: 50 | G47: 2.28 | H47: 0.44 | I47: 23.76 | J47: 111.4 | K47: 573/574
D48: фрукты
D51: итого | F51: =SUM(F44:F50) -> 510 | G51: =SUM(G44:G50) -> 13.381 | H51: =SUM(H44:H50) -> 17.502 | I51: =SUM(I44:I50) -> 75.17 | J51: =SUM(J44:J50) -> 617.4 | L51: =SUM(L44:L50) -> 74.77
A52: =A44 -> 1 | B52: =B44 -> 3 | C52: Обед | D52: закуска
D53: 1 блюдо
D54: 2 блюдо
D55: гарнир
D56: напиток
D57: хлеб бел.
D58: хлеб черн.
D61: итого | F61: =SUM(F52:F60) -> 0 | G61: =SUM(G52:G60) -> 0 | H61: =SUM(H52:H60) -> 0 | I61: =SUM(I52:I60) -> 0 | J61: =SUM(J52:J60) -> 0 | L61: 0
A62: =A44 -> 1 | B62: =B44 -> 3 | C62: Итого за день: | F62: =F51+F61 -> 510 | G62: =G51+G61 -> 13.381 | H62: =H51+H61 -> 17.502 | I62: =I51+I61 -> 75.17 | J62: =J51+J61 -> 617.4 | L62: 74.77
A63: 1 | B63: 4 | C63: Завтрак | D63: гор.блюдо | E63: Гарнир гречневый, мясной соус, свекла отварная | F63: 310 | G63: 16.47 | H63: 16.87 | I63: 44.12 | J63: 384 | K63: 226сб шк14/101сб шк | L63: 74.77
D65: гор.напиток | E65: напиток шиповника | F65: 200 | G65: 3.97 | H65: 2.1 | I65: 25.17 | J65: 135.45 | K65: 294сб шк14
D66: хлеб | E66: хлеб пшеничный/ржаной | F66: 50 | G66: 2.28 | H66: 0.44 | I66: 23.76 | J66: 111.4 | K66: 573/574
D67: фрукты
D70: итого | F70: =SUM(F63:F69) -> 560 | G70: =SUM(G63:G69) -> 22.72 | H70: =SUM(H63:H69) -> 19.41 | I70: =SUM(I63:I69) -> 93.05 | J70: =SUM(J63:J69) -> 630.85 | L70: 74.77
A71: =A63 -> 1 | B71: =B63 -> 4 | C71: Обед | D71: закуска
D72: 1 блюдо
D73: 2 блюдо
D74: гарнир
D75: напиток
D76: хлеб бел.
D77: хлеб черн.
D80: итого | F80: =SUM(F71:F79) -> 0 | G80: =SUM(G71:G79) -> 0 | H80: =SUM(H71:H79) -> 0 | I80: =SUM(I71:I79) -> 0 | J80: =SUM(J71:J79) -> 0 | L80: 0
A81: =A63 -> 1 | B81: =B63 -> 4 | C81: Итого за день: | F81: =F70+F80 -> 560 | G81: =G70+G80 -> 22.72 | H81: =H70+H80 -> 19.41 | I81: =I70+I80 -> 93.05 | J81: =J70+J80 -> 630.85 | L81: 74.77
A82: 1 | B82: 5 | C82: Завтрак | D82: гор.блюдо | E82: Гороховое пюре, котлеты "Курочка ряба" с соус кр | F82: 260 | G82: 12.354 | H82: 14.05 | I82: 32.8 | J82: 392.88 | K82: 2211сб шк1420/87сб шк14 | L82: 74.77
D84: гор.напиток | E84: Компот из свежих ягод | F84: 218 | G84: 3.97 | H84: 2.1 | I84: 15.27 | J84: 135.45 | K84: 294сб шк 14
D85: хлеб | E85: Хлеб пшеничный | F85: 50 | G85: 2.28 | H85: 0.44 | I85: 23.76 | J85: 111.4 | K85: 573
D89: итого | F89: =SUM(F82:F88) -> 528 | G89: =SUM(G82:G88) -> 18.604 | H89: =SUM(H82:H88) -> 16.59 | I89: =SUM(I82:I88) -> 71.83 | J89: =SUM(J82:J88) -> 639.73 | L89: 74.77
A90: =A82 -> 1 | B90: =B82 -> 5 | C90: Обед | D90: закуска
D91: 1 блюдо
D92: 2 блюдо
D93: гарнир
D94: напиток
D95: хлеб бел.
D96: хлеб черн.
D99: итого | F99: =SUM(F90:F98) -> 0 | G99: =SUM(G90:G98) -> 0 | H99: =SUM(H90:H98) -> 0 | I99: =SUM(I90:I98) -> 0 | J99: =SUM(J90:J98) -> 0 | L99: 0
A100: =A82 -> 1 | B100: =B82 -> 5 | C100: Итого за день: | F100: =F89+F99 -> 528 | G100: =G89+G99 -> 18.604 | H100: =H89+H99 -> 16.59 | I100: =I89+I99 -> 71.83 | J100: =J89+J99 -> 639.73 | L100: 74.77
A101: 1 | B101: 6 | C101: Завтрак | D101: гор.блюдо | E101: Плов сладкий с изюмом | F101: 240 | G101: 12.73 | H101: 17.07 | I101: 46.32 | J101: 403.5 | K101: 143сб шк14/ 246сб шк14 | L101: 74.77
D103: гор.напиток | E103: чай с конфетой | F103: 220 | G103: 1.6 | H103: 0.005 | I103: 14.98 | J103: 60 | K103: 294сб шк14
D104: хлеб | E104: пшеничный/ржано-пшеничный | F104: 50 | G104: 2.28 | H104: 0.44 | I104: 29.76 | J104: 111.4 | K104: 573/574
D105: фрукты
D108: итого | F108: =SUM(F101:F107) -> 510 | G108: =SUM(G101:G107) -> 16.61 | H108: 17.515 | I108: 91.06 | J108: 574.9 | L108: 74.77
A109: =A101 -> 1 | B109: =B101 -> 6 | C109: Обед | D109: закуска
D110: 1 блюдо
D111: 2 блюдо
D112: гарнир
D113: напиток
D114: хлеб бел.
D115: хлеб черн.
D118: итого | F118: =SUM(F109:F117) -> 0 | G118: =SUM(G109:G117) -> 0 | H118: 0 | I118: 0 | J118: 0 | L118: =SUM(L109:L117) -> 0
A119: =A101 -> 1 | B119: =B101 -> 6 | C119: Итого за день: | F119: =F108+F118 -> 510 | G119: =G108+G118 -> 16.61 | H119: 17.515 | I119: 91.06 | J119: 574.9 | L119: =L108+L118 -> 74.77
A120: 2 | B120: 1 | C120: Завтрак | D120: гор.блюдо | E120: каша молочная геркулесовая с курогой жидкая со сливочным маслом,ватрушка с повидлом | F120: 260 | G120: 8.12 | H120: 13.44 | I120: 25.13 | J120: 508.4 | K120: 184сб шк14/5 сб шк 14 | L120: 74.77
D122: гор.напиток | E122: Чай с сахаром | F122: 210 | G122: 0.021 | H122: 0.005 | I122: 14.98 | J122: 60 | K122: 294сб шк14
D123: хлеб | E123: Хлеб пшеничный/ржаной | F123: 50 | G123: 2.28 | H123: 0.44 | I123: 23.76 | J123: 111.4 | K123: 573/574
D124: фрукты
D127: итого | F127: =SUM(F120:F126) -> 520 | G127: =SUM(G120:G126) -> 10.421 | H127: =SUM(H120:H126) -> 13.885 | I127: =SUM(I120:I126) -> 63.87 | J127: =SUM(J120:J126) -> 679.8 | L127: =SUM(L120:L125) -> 74.77
A128: =A120 -> 2 | B128: =B120 -> 1 | C128: Обед | D128: закуска
D129: 1 блюдо
D130: 2 блюдо
D131: гарнир
D132: напиток
D133: хлеб бел.
D134: хлеб черн.
D137: итого | F137: =SUM(F128:F136) -> 0 | G137: =SUM(G128:G136) -> 0 | H137: 0 | I137: 0 | J137: 0 | L137: =SUM(L128:L136) -> 0
A138: =A120 -> 2 | B138: =B120 -> 1 | C138: Итого за день: | F138: =F127+F137 -> 520 | G138: =G127+G137 -> 10.421 | H138: =H127+H137 -> 13.885 | I138: =I127+I137 -> 63.87 | J138: =J127+J137 -> 679.8 | L138: 74.77
A139: 2 | B139: 2 | C139: Завтрак | D139: гор.блюдо | E139: Макароны отварные, котлета "Студенческая" с соусом кр. Основной | F139: 260 | G139: 8.86 | H139: 10.85 | I139: 50 | J139: 406.6 | K139: 117сб шк14 | L139: 74.77
D141: гор.напиток | E141: Компот из сухофруктов | F141: 200 | G141: 0.021 | H141: 0.005 | I141: 14.98 | J141: 98.605 | K141: 294сб шк14
D142: хлеб | E142: Хлеб пшеничный/ржаной | F142: 50 | G142: 2.28 | H142: 0.44 | I142: 23.76 | J142: 111.4 | K142: 573/574
D143: фрукты
D146: итого | F146: =SUM(F139:F145) -> 510 | G146: =SUM(G139:G145) -> 11.161 | H146: 11.295 | I146: 88.74 | J146: 616.605 | L146: =SUM(L139:L145) -> 74.77
A147: =A139 -> 2 | B147: =B139 -> 2 | C147: Обед | D147: закуска
D148: 1 блюдо
D149: 2 блюдо
D150: гарнир
D151: напиток
D152: хлеб бел.
D153: хлеб черн.
D156: итого | F156: =SUM(F147:F155) -> 0 | G156: =SUM(G147:G155) -> 0 | H156: 0 | I156: 0 | J156: 0 | L156: =SUM(L147:L155) -> 0
A157: =A139 -> 2 | B157: =B139 -> 2 | C157: Итого за день: | F157: =F146+F156 -> 510 | G157: =G146+G156 -> 11.161 | H157: =H146+H156 -> 11.295 | I157: =I146+I156 -> 88.74 | J157: =J146+J156 -> 616.605 | L157: 74.77
A158: 2 | B158: 3 | C158: Завтрак | D158: гор.блюдо | E158: Запеканка с творогом со сгущенным молоком | F158: 210 | G158: 12.354 | H158: 14.05 | I158: 31.6 | J158: 162.88 | K158: 211сб тшк14 / 87сб шк14 | L158: 74.77
D159: Выпечка | E159: Кондидерские изделия | F159: 50 | G159: 12.73 | H159: 13.2 | I159: 20 | J159: 318.58
D160: гор.напиток | E160: компот с сухофруктами | F160: 200 | G160: 1.6 | H160: 1,,65 | I160: 12.36 | J160: 32.69 | K160: 282сб шк14
D161: хлеб | E161: Хлеб пшеничный/ржаной | F161: 50 | G161: 2.28 | H161: 0.44 | I161: 23.76 | J161: 111.4 | K161: 573/574
D165: итого | F165: =SUM(F158:F164) -> 510 | G165: =SUM(G158:G164) -> 28.964 | H165: 27.69 | I165: 87.72 | J165: 625.12 | L165: =SUM(L158:L164) -> 74.77
A166: =A158 -> 2 | B166: =B158 -> 3 | C166: Обед | D166: закуска
D167: 1 блюдо
D168: 2 блюдо
D169: гарнир
D170: напиток
D171: хлеб бел.
D172: хлеб черн.
D175: итого | F175: =SUM(F166:F174) -> 0 | G175: =SUM(G166:G174) -> 0 | H175: 0 | I175: 0 | J175: 0 | L175: =SUM(L166:L174) -> 0
A176: =A158 -> 2 | B176: =B158 -> 3 | C176: Итого за день: | F176: =F165+F175 -> 510 | G176: =G165+G175 -> 28.964 | H176: =H165+H175 -> 27.69 | I176: =I165+I175 -> 87.72 | J176: =J165+J175 -> 625.12 | L176: 74.77
A177: 2 | B177: 4 | C177: Завтрак | D177: гор.блюдо | E177: Плов с курицей | F177: 200 | G177: 10.99 | H177: 16.657 | I177: 36.03 | J177: 410.66 | K177: 172сб шк14/124сб шк14 | L177: 74.77
D178: закуска | E178: свекла отварная | F178: 60 | G178: 0.8 | H178: 1 | I178: 1.7 | J178: 11
D179: гор.напиток | E179: Компот из свежих ягод | F179: 200 | G179: 3.97 | H179: 2.1 | I179: 25.17 | J179: 135.45 | K179: 294сб шк14
D180: хлеб | E180: Хлеб пшеничный/ржаной | F180: 50 | G180: 2.28 | H180: 0.44 | I180: 23.76 | J180: 111.4 | K180: 573/574
D181: фрукты
D184: итого | F184: =SUM(F177:F183) -> 510 | G184: =SUM(G177:G183) -> 18.04 | H184: =SUM(H177:H183) -> 20.197 | I184: =SUM(I177:I183) -> 86.66 | J184: =SUM(J177:J183) -> 668.51 | L184: =SUM(L177:L183) -> 74.77
A185: =A177 -> 2 | B185: =B177 -> 4 | C185: Обед | D185: закуска
D186: 1 блюдо
D187: 2 блюдо
D188: гарнир
D189: напиток
D190: хлеб бел.
D191: хлеб черн.
D194: итого | F194: =SUM(F185:F193) -> 0 | G194: =SUM(G185:G193) -> 0 | H194: 0 | I194: 0 | J194: 0 | L194: =SUM(L185:L193) -> 0
A195: =A177 -> 2 | B195: =B177 -> 4 | C195: Итого за день: | F195: =F184+F194 -> 510 | G195: =G184+G194 -> 18.04 | H195: =H184+H194 -> 20.197 | I195: =I184+I194 -> 86.66 | J195: =J184+J194 -> 668.51 | L195: 74.77
A196: 2 | B196: 5 | C196: Завтрак | D196: гор.блюдо | E196: Картофельное пюре, тефтели рыбные "Океан" с соусом кр. Основн | F196: 280 | G196: 17.37 | H196: 19.7 | I196: 59.34 | J196: 565.5 | K196: 5сб шк14/246сб шк14 | L196: 74.77
D198: гор.напиток | E198: Сок фруктовый | F198: 200 | G198: 1.6 | H198: 1.65 | I198: 15.36 | J198: 80.69 | K198: 282сб шк14 1
D199: хлеб | E199: Хлеб пшеничный | F199: 30 | G199: 1.5 | H199: 0.13 | I199: 9.7 | J199: 1.93 | K199: 573
D200: фрукты
D203: итого | F203: =SUM(F196:F202) -> 510 | G203: =SUM(G196:G202) -> 20.47 | H203: =SUM(H196:H202) -> 21.48 | I203: =SUM(I196:I202) -> 84.4 | J203: =SUM(J196:J202) -> 648.12 | L203: =SUM(L196:L202) -> 74.77
A204: =A196 -> 2 | B204: =B196 -> 5 | C204: Обед | D204: закуска
D205: 1 блюдо
D206: 2 блюдо
D207: гарнир
D208: напиток
D209: хлеб бел.
D210: хлеб черн.
D213: итого | F213: =SUM(F204:F212) -> 0 | G213: =SUM(G204:G212) -> 0 | H213: 0 | I213: 0 | J213: 0 | L213: =SUM(L204:L212) -> 0
A214: =A196 -> 2 | B214: =B196 -> 5 | C214: Итого за день: | F214: =F203+F213 -> 510 | G214: =G203+G213 -> 20.47 | H214: 21.48 | I214: 84.4 | J214: 648.12 | L214: =L203+L213 -> 74.77
A215: 2 | B215: 6 | C215: Завтрак | D215: гор.блюдо | E215: Пельмени с бульоном со сметаной | F215: 230 | G215: 15.47 | H215: 18.37 | I215: 67.98 | J215: 499 | K215: 246сб шк14 | L215: 74.77
D217: гор.напиток | E217: чай с кофетой | F217: 220 | G217: 0.021 | H217: 0.005 | I217: 14.98 | J217: 98.605 | K217: 294сб шк14
D218: хлеб | E218: Хлеб пшеничный | F218: 50 | G218: 1.5 | H218: 0.13 | I218: 9.7 | J218: 1.93 | K218: 573
D219: фрукты
D222: итого | F222: =SUM(F215:F221) -> 500 | G222: =SUM(G215:G221) -> 16.991 | H222: 18.505 | I222: 92.66 | J222: 599.535 | L222: 74.77
A223: =A215 -> 2 | B223: =B215 -> 6 | C223: Обед | D223: закуска
D224: 1 блюдо
D225: 2 блюдо
D226: гарнир
D227: напиток
D228: хлеб бел.
D229: хлеб черн.
D232: итого | F232: =SUM(F223:F231) -> 0 | G232: =SUM(G223:G231) -> 0 | H232: 0 | I232: 0 | J232: 0 | L232: =SUM(L223:L231) -> 0
A233: =A215 -> 2 | B233: =B215 -> 6 | C233: Итого за день: | F233: =F222+F232 -> 500 | G233: =G222+G232 -> 16.991 | H233: 18.505 | I233: 92.66 | J233: 599.535 | L233: =L222+L232 -> 74.77
C234: Среднее значение за период: | F234: =(F24+F43+F62+F81+F100+F119+F138+F157+F176+F195+F214+F233)/(IF(F24=0,0,1)+IF(F43=0,0,1)+IF(F62=0,0,1)+IF(F81=0,0,1)+IF(F100=0,0,1)+IF(F119=0,0,1)+IF(F138=0,0,1)+IF(F157=0,0,1)+IF(F176=0,0,1)+IF(F195=0,0,1)+IF(F214=0,0,1)+IF(F233=0,0,1)) -> 518.1666667 | G234: =(G24+G43+G62+G81+G100+G119+G138+G157+G176+G195+G214+G233)/(IF(G24=0,0,1)+IF(G43=0,0,1)+IF(G62=0,0,1)+IF(G81=0,0,1)+IF(G100=0,0,1)+IF(G119=0,0,1)+IF(G138=0,0,1)+IF(G157=0,0,1)+IF(G176=0,0,1)+IF(G195=0,0,1)+IF(G214=0,0,1)+IF(G233=0,0,1)) -> 17.21783333 | H234: 17.56908333 | I234: 82.51416667 | J234: 627.8875 | L234: 74.77
